[Event "1st FIDE Olympiad DIS 2023"]
[Site "Belgrade"]
[Date "2023.01.31"]
[Round "2.13"]
[White "Sahin, Handenur"]
[Black "Ibraimov, Kubanychbek"]
[Result "0-1"]
[ECO "B24"]
[WhiteElo "1915"]
[BlackElo "1316"]
[Annotator "TA"]
[PlyCount "106"]
[EventDate "2023.01.30"]
[EventType "team-tourn"]
[EventCountry "SRB"]
[SourceTitle "playchess.com"]
[Source "ChessBase"]
[SourceQuality "1"]
[WhiteTeam "Turkey"]
[BlackTeam "Kyrgyzstan"]
[WhiteTeamCountry "TUR"]
[BlackTeamCountry "KGZ"]
[TimeControl "40/5400+30:1800+30"]

{[%evp 11,106,-1,6,-34,-15,-11,0,-8,10,0,0,0,14,13,23,3,10,10,38,-8,0,0,0,0,8,-7,22,0,43,53,48,10,16,19,22,-10,29,-19,-25,-20,0,-6,-2,-50,-30,-97,-91,-108,-90,-93,-89,-181,-169,-235,-227,-230,-235,-367,-356,-423,-423,-422,-422,-535,-535,-535,-535,-535,-535,-533,-366,-533,-389,-514,-458,-628,-614,-662,-652,-630,-593,-772,-766,-747,-740,-863,-783,-1004,-991,-1300,-1277,-1182,-1119,-1243,-1199,-1793,-1778]} 1. e4 {[%emt 0:21:44]} c5 {[%emt 0:00:36]} 2. Nc3 {[%emt 0:00:38]} Nc6 {[%emt 0:00:16]} 3. Nge2 {[%emt 0:01:12]} e6 {[%emt 0:00:44]} 4. g3 {[%emt 0:03:42]} g6 {[%emt 0:00:31]} 5. Bg2 {[%emt 0:10:00]} Bg7 {[%emt 0:00:28]} 6. O-O {[%emt 0:00:57]} Nge7 {[%emt 0:00:12]} 7. Nb5 {[%emt 0:07:32] B24: Closed Sicilian: 3 g3 sidelines.} d6 {[%emt 0:00:52]} 8. c3 {[%emt 0:02:35]} a6 {[%emt 0:00:31]} 9. Na3 {[%emt 0:00:14] [#] The position is equal.} b5 $146 {[%emt 0:00:33]} ({Predecessor:} 9... O-O 10. d4 cxd4 11. cxd4 e5 12. d5 Nb8 13. Be3 b5 14. Rc1 Nd7 15. Qc2 f5 {1-0 Galanakis,N (1525)-Koutsaftis,E (1442) Heraklion op 21st 2017 (5)}) 10. d4 {[%emt 0:01:59]} cxd4 {[%emt 0:02:35]} 11. cxd4 {[%emt 0:01:41]} Bb7 {[%emt 0:00:30]} 12. Nc2 {[%emt 0:04:29]} Rc8 {[%emt 0:00:44]} 13. Bg5 {[%emt 0:05:06]} h6 {[%emt 0:00:59]} 14. Be3 {[%emt 0:02:03]} Na5 {[%emt 0:00:56]} 15. Nc3 {[%emt 0:05:56]} (15. b3 $14) 15... Nc4 {[%emt 0:00:28]} 16. Bc1 {[%emt 0:02:21]} O-O {[%emt 0:01:09]} 17. b3 {[%emt 0:08:30]} Nb6 {[%emt 0:01:08]} 18. Bb2 {[%emt 0:00:54]} Qd7 {[%emt 0:01:02]} 19. Qd2 {[%emt 0:03:06]} Rc7 {[%emt 0:00:52]} 20. Ne3 {[%emt 0:03:04]} Rfc8 {[%emt 0:00:35]} 21. Rac1 {[%emt 0:03:28]} b4 {[%emt 0:01:19]} 22. Ne2 {[%emt 0:00:11]} a5 {[%emt 0:00:20]} (22... Rxc1 {simplifies} 23. Rxc1 Rxc1+ 24. Nxc1 a5) 23. Ng4 {[%emt 0:03:50]} Kh7 {[%emt 0:02:19]} 24. h4 {[%emt 0:05:04]} (24. d5 {is more appropriate.} e5 25. Ne3) 24... h5 $11 {[%emt 0:01:07]} 25. Ne3 {[%emt 0:00:14]} Ba6 {[%emt 0:00:36][%cal Bb7a6,Ba6d3,Bd3b1,Bb1e4][%mdl 32]} (25... d5 $5 {[%cal Rd5e4]}) 26. Rxc7 {[%emt 0:02:45]} Rxc7 27. f4 {[%emt 0:02:03]} (27. d5 $11) 27... Qb5 {[%emt 0:00:28]} (27... f5 $5 {[%cal Rf5e4]}) 28. Rf2 {[%emt 0:01:59]} (28. Re1 $11) 28... Qd3 $1 $17 {[%emt 0:00:42] White is on the road to losing.} 29. Qxd3 {[%emt 0:03:40]} Bxd3 {[%emt 0:00:13]} 30. Nc1 {[%emt 0:01:41]} Bb1 {[%emt 0:01:32] Black is much more active.} 31. Rd2 {[%emt 0:00:59]} (31. e5 $17 Nf5 32. Nxf5 Bxf5 33. exd6) 31... a4 $36 {[%emt 0:00:41][%mdl 2048] Strongly threatening ...a3. White is under strong pressure.} 32. a3 {[%emt 0:03:47]} (32. Nd3 $142 a3 33. Ba1) 32... bxa3 $19 {[%emt 0:01:46]} 33. Bxa3 {[%emt 0:00:06] [#]} axb3 $1 {[%emt 0:00:49]} ({Weaker is} 33... Rc3 34. Kf2 $15) 34. Nxb3 {[%emt 0:00:37]} (34. Kf2 $142) 34... Rc3 $1 {[%emt 0:00:26][%csl LRb3,LRe3][%cal Bc7c3,Bc3e3,Be3e4][%mdl 32]} 35. Rb2 {[%emt 0:00:24] [#]} Bxe4 {[%emt 0:01:50]} ({And not} 35... Rxe3 36. Rxb1 Nc4 37. Bb4 $17) 36. Bxd6 {[%emt 0:02:39]} Nec8 {[%emt 0:00:58]} (36... Rxe3 $2 {loses.} 37. Bxe7 Nc4 38. Nd2 Nxb2 39. Nxe4 $19) 37. Bc5 {[%emt 0:01:04]} Rxe3 {[%emt 0:00:35]} 38. Kf2 {[%emt 0:01:09]} Nd5 {[%emt 0:00:49] aiming for ...Bxg2.} 39. Bxe4 {[%emt 0:01:02]} Rxe4 {[%emt 0:00:29]} 40. Rc2 {[%emt 0:00:44]} Ne3 {[%emt 0:01:19]} 41. Ra2 {[%emt 0:00:49]} (41. Kf3 $142 f5 42. Re2) 41... Nd1+ {[%emt 0:00:34]} 42. Kg2 {[%emt 0:00:14]} Bf6 {[%emt 0:02:45] Black is clearly winning.} 43. Bb4 {[%emt 0:04:43]} Bxd4 {[%emt 0:01:31]} 44. Rd2 {[%emt 0:01:21]} Bc3 {[%emt 0:00:54]} 45. Bxc3 {[%emt 0:00:43]} Nxc3 {[%emt 0:00:09]} 46. Kf3 {[%emt 0:00:31]} Rb4 {[%emt 0:00:13]} 47. Nc5 {[%emt 0:00:20]} Nd5 {[%emt 0:00:52]} 48. Nd7 {[%emt 0:00:11]} Nd6 {[%emt 0:00:44] ...Rb3+ would be deadly.} 49. Ra2 {[%emt 0:00:13]} Rb3+ {[%emt 0:00:20]} 50. Kf2 {[%emt 0:00:03]} Ne4+ {[%emt 0:00:15]} 51. Kg2 {[%emt 0:00:21]} Rxg3+ {[%emt 0:00:22]} 52. Kh2 {[%emt 0:00:02]} Rg4 {[%emt 0:00:49]} 53. Ra8 {[%emt 0:00:17]} Nxf4 {[%emt 0:00:28] Weighted Error Value: White=0.39/Black=0.18 (very precise)} 0-1

[Event "1st FIDE Olympiad DIS 2023"]
[Site "Belgrade"]
[Date "2023.01.31"]
[Round "2.14"]
[White "Babula, Milan"]
[Black "Lopez, Henry"]
[Result "1/2-1/2"]
[ECO "C92"]
[WhiteElo "2107"]
[BlackElo "2102"]
[Annotator "TA"]
[PlyCount "66"]
[EventDate "2023.01.30"]
[EventType "team-tourn"]
[EventCountry "SRB"]
[SourceTitle "playchess.com"]
[Source "ChessBase"]
[SourceQuality "1"]
[WhiteTeam "Czech Republic"]
[BlackTeam "Philippines"]
[WhiteTeamCountry "CZE"]
[BlackTeamCountry "PHI"]
[TimeControl "40/5400+30:1800+30"]

{[%evp 26,66,48,46,50,-31,1,-2,0,0,0,-12,-8,0,5,-7,-1,-14,-7,-41,26,24,25,25,33,21,22,13,28,17,74,63,95,50,116,59,48,55,43,46,60,43,43]} 1. e4 {[%emt 0:00:05]} e5 {[%emt 0:00:26]} 2. Nf3 {[%emt 0:00:13]} Nc6 {[%emt 0:00:56]} 3. Bb5 {[%emt 0:00:09]} a6 {[%emt 0:00:51]} 4. Ba4 {[%emt 0:00:06]} Nf6 {[%emt 0:00:26]} 5. O-O {[%emt 0:00:55]} Be7 {[%emt 0:00:43]} 6. Re1 {[%emt 0:00:21]} b5 {[%emt 0:00:27]} 7. Bb3 {[%emt 0:00:02]} d6 {[%emt 0:00:18]} 8. c3 {[%emt 0:00:10]} O-O {[%emt 0:00:15]} 9. h3 {[%emt 0:00:08]} Bb7 {[%emt 0:00:28]} 10. d3 {[%emt 0:00:21]} Na5 {[%emt 0:00:52]} 11. Bc2 {[%emt 0:00:03]} c5 {[%emt 0:00:15]} 12. Nbd2 {[%emt 0:00:04][%cal Bb1d2,Bd2f1,Bf1e3][%mdl 32]} Re8 {[%emt 0:01:55]} 13. Nf1 {[%emt 0:00:07]} Bf8 {[%emt 0:00:25]} 14. Bg5 {[%emt 0:06:34]} h6 {[%emt 0:03:38] C92: Closed Ruy Lopez: 9...Be6, Karpov and Flohr-Zaitsev Variations.} 15. Bd2 {[%emt 0:00:24]} (15. Bh4 $14) 15... Nc6 {[%emt 0:03:15] [#]} 16. N3h2 $146 {[%emt 0:10:31]} ({Predecessor:} 16. a3 g6 17. Qc1 Kh7 18. b4 Rc8 19. Ng3 Bg7 20. Qb2 Qd7 21. Be3 cxb4 22. axb4 {½-½ Firouzja,A (2682)-Martinez Alcantara,J (2583) chess.com Speed U20 blitz 2019 (1.25)}) 16... Bc8 {[%emt 0:06:16] The position is equal.} 17. Ne3 {[%emt 0:10:15]} Be6 {[%emt 0:02:26]} 18. Nhg4 {[%emt 0:04:07]} Nxg4 {[%emt 0:12:21]} 19. hxg4 {[%emt 0:00:07]} Be7 {[%emt 0:00:52]} 20. Bb3 {[%emt 0:28:16]} Bg5 {[%emt 0:01:09]} 21. Bd5 {[%emt 0:01:11]} Qd7 {[%emt 0:01:35]} 22. f3 {[%emt 0:08:17]} g6 {[%emt 0:00:52]} (22... Bxe3+ $15 23. Bxe3 Bxd5 24. exd5 Ne7) 23. Kf2 $11 {[%emt 0:01:04]} Rab8 {[%emt 0:01:17]} 24. Rh1 {[%emt 0:01:42]} Ne7 {[%emt 0:01:46]} 25. Qc1 {[%emt 0:03:03][%cal Oe3f5] aiming for Nf5!} f6 {[%emt 0:01:38]} 26. c4 {[%emt 0:04:06]} Kg7 {[%emt 0:01:52]} 27. g3 {[%emt 0:01:30]} Bxd5 {[%emt 0:01:02]} (27... Bxe3+ $11 {keeps the balance.} 28. Bxe3 g5) 28. cxd5 $16 {[%emt 0:00:47]} Rh8 {[%emt 0:14:17]} 29. Rh2 {[%emt 0:05:17]} Rh7 {[%emt 0:04:26]} (29... Bxe3+ $14 30. Bxe3 g5) 30. Qc2 {[%emt 0:04:35]} (30. Ng2 $16) 30... Rbh8 {[%emt 0:11:23] White is slightly better.} 31. Rah1 {[%emt 0:00:23]} h5 {[%emt 0:10:37]} 32. gxh5 {[%emt 0:03:27]} Bxe3+ {[%emt 0:03:31]} 33. Bxe3 {[%emt 0:00:06]} Rxh5 {[%emt 0:00:53] Weighted Error Value: White=0.17 (very precise) /Black=0.16 (very precise)} 1/2-1/2

[Event "1st FIDE Olympiad DIS 2023"]
[Site "Belgrade"]
[Date "2023.01.31"]
[Round "2.14"]
[White "Arstanbekov, Dzhanysh"]
[Black "Deniz, Ugur"]
[Result "0-1"]
[ECO "C45"]
[WhiteElo "1621"]
[BlackElo "1946"]
[Annotator "TA"]
[PlyCount "84"]
[EventDate "2023.01.30"]
[EventType "team-tourn"]
[EventCountry "SRB"]
[SourceTitle "playchess.com"]
[Source "ChessBase"]
[SourceQuality "1"]
[WhiteTeam "Kyrgyzstan"]
[BlackTeam "Turkey"]
[WhiteTeamCountry "KGZ"]
[BlackTeamCountry "TUR"]
[TimeControl "40/5400+30:1800+30"]

{[%evp 17,84,-12,-12,-68,-62,-114,-118,-160,-64,-70,-68,-86,-84,-90,-78,-68,-81,-75,-35,-45,-51,-131,-132,-132,-68,-66,-52,-58,-66,-229,-235,-278,-301,-297,-302,-383,-394,-365,-387,-613,-602,-1050,-1064,-922,-877,-1437,-1455,-1350,-1367,-1114,-1078,-1421,-1315,-2681,-2631,-6183,-6387,-6223,-5967,-29980,-29981,-29988,-29989,-29989,-29987,-29988,-29989,-29988,-29988]} 1. e4 {[%emt 0:00:29]} e5 {[%emt 0:03:22]} 2. Nf3 {[%emt 0:00:20]} Nc6 {[%emt 0:00:24]} 3. d4 {[%emt 0:00:22]} exd4 {[%emt 0:00:26]} 4. Nxd4 {[%emt 0:00:15]} Nf6 {[%emt 0:01:00]} 5. Nxc6 {[%emt 0:00:59]} bxc6 {[%emt 0:00:13]} 6. e5 {[%emt 0:00:41]} Qe7 {[%emt 0:00:28]} 7. Qe2 {[%emt 0:00:27]} Nd5 {[%emt 0:00:14][%cal Bf6d5,Bd5b6,Bb6a4,Ba4b2][%mdl 32]} 8. c4 {[%emt 0:00:23]} Ba6 {[%emt 0:03:48]} 9. Nd2 {[%emt 0:04:28]} g6 {[%emt 0:05:48]} 10. a3 {[%emt 0:03:05] C45: Scotch Game.} (10. Ne4 $11) 10... Bg7 {[%emt 0:05:21]} 11. Qe4 {[%emt 0:00:12]} (11. Nf3 $15) 11... Nb6 $1 $17 {[%emt 0:01:24] Black is more active.} 12. f4 {[%emt 0:03:41] [#] Black is better.} f5 {[%emt 0:10:22]} ({Better is} 12... O-O $1 $17 {...f6 is the strong threat.} 13. Nf3 d5 14. cxd5 cxd5) 13. exf6 $15 {[%emt 0:01:33]} Bxf6 {[%emt 0:00:18] [#]} 14. c5 $146 {[%emt 0:16:31]} ({Predecessor:} 14. Qxe7+ Bxe7 15. Bd3 O-O 16. O-O d5 17. Be2 Bf6 18. Rb1 Rad8 19. Bg4 Bxc4 20. Nxc4 Nxc4 21. Re1 Rfe8 22. Rxe8+ Rxe8 23. Bd7 Re7 24. Bg4 c5 {0-1 Biciuc,V (1469)-Topic,A (1750) Wch U14 Girls 2009 (6)}) 14... Bxf1 {[%emt 0:02:04]} 15. Rxf1 {[%emt 0:02:14]} Na4 {[%emt 0:04:44]} 16. Qxe7+ {[%emt 0:08:05]} Kxe7 {[%emt 0:00:10]} 17. Ne4 {[%emt 0:01:25]} Bxb2 {[%emt 0:02:15]} ({But not} 17... Nxb2 $6 18. Nxf6 Nd3+ 19. Kd1 Nxc1 20. Nxd7 $11) 18. Bxb2 {[%emt 0:00:53]} Nxb2 {[%emt 0:00:08]} 19. Ra2 {[%emt 0:01:40] [#]} (19. Kd2 $1 $15) 19... Rab8 $1 $17 {[%emt 0:01:29]} 20. Kd2 {[%emt 0:03:42]} d5 {[%emt 0:15:31]} (20... Rhf8 $17 {White must now prevent ...d5.} 21. g3 d5) 21. cxd6+ $15 {[%emt 0:03:08]} cxd6 {[%emt 0:01:19] Strongly threatening ...Rhf8.} 22. Re1 {[%emt 0:06:06] Threatens to win with Kc2.} d5 $36 {[%emt 0:00:50][%mdl 2048] Black has some pressure.} 23. Ng5+ {[%emt 0:02:48] Now White is beyond hope.} ({White must play} 23. Kc2 $1 $15 Nc4 24. Nd2+ Kd6 25. Nxc4+ dxc4 26. Kc3) 23... Kd7 $19 {[%emt 0:00:15]} 24. Nf7 {[%emt 0:02:17]} Nc4+ {[%emt 0:00:10]} 25. Kc3 {[%emt 0:00:08]} Rhf8 {[%emt 0:00:42]} 26. Ne5+ {[%emt 0:10:02]} Nxe5 {[%emt 0:00:10]} 27. fxe5 {[%emt 0:00:24][%mdl 4096] Endgame KRR-KRR} Ke6 {[%emt 0:00:38]} 28. g3 {[%emt 0:06:05]} (28. Rd1 $142) 28... c5 {[%emt 0:00:36][%cal Bc6c5,Bc5c4,Bc4c3,Bc3c2][%mdl 32]} 29. Rae2 {[%emt 0:00:32]} Rf3+ {[%emt 0:00:29][%mdl 64] Skewer} 30. Kd2 {[%emt 0:03:26]} Rxa3 {[%emt 0:00:14]} 31. Rc1 {[%emt 0:01:04]} Rb2+ {[%emt 0:01:52]} 32. Ke1 {[%emt 0:00:20]} Rxe2+ {[%emt 0:00:11]} 33. Kxe2 {[%emt 0:00:03] KR-KR} c4 {[%emt 0:00:38]} 34. Rb1 {[%emt 0:00:30]} Kxe5 {[%emt 0:00:20]} 35. Rb7 {[%emt 0:00:07]} Ra2+ {[%emt 0:00:23]} 36. Kf3 {[%emt 0:00:14]} Rxh2 {[%emt 0:00:26]} 37. Rxa7 {[%emt 0:00:04]} Kd4 {[%emt 0:00:31]} 38. Rd7 {[%emt 0:02:31]} c3 {[%emt 0:00:12] Black mates.} 39. g4 {[%emt 0:00:25]} c2 {[%emt 0:00:59]} 40. Rc7 {[%emt 0:00:04]} Kd3 {[%emt 0:00:12]} 41. Kg3 {[%emt 0:30:49]} Re2 {[%emt 0:00:17]} 42. Kf3 {[%emt 0:00:43]} Re1 {[%emt 0:29:21] Weighted Error Value: White=1.26/Black=0.19 (very precise)} 0-1

[Event "1st FIDE Olympiad DIS 2023"]
[Site "Belgrade"]
[Date "2023.01.31"]
[Round "2.15"]
[White "Bernardo, Darry"]
[Black "Valenta, Vit Vaclav"]
[Result "1/2-1/2"]
[ECO "C22"]
[WhiteElo "2070"]
[BlackElo "2022"]
[Annotator "TA"]
[PlyCount "89"]
[EventDate "2023.01.30"]
[EventType "team-tourn"]
[EventCountry "SRB"]
[SourceTitle "playchess.com"]
[Source "ChessBase"]
[SourceQuality "1"]
[WhiteTeam "Philippines"]
[BlackTeam "Czech Republic"]
[WhiteTeamCountry "PHI"]
[BlackTeamCountry "CZE"]
[TimeControl "40/5400+30:1800+30"]

{[%evp 13,89,30,46,0,0,0,28,22,31,0,17,10,49,0,-23,-57,-51,-108,-110,-160,0,0,0,-41,-40,-50,0,0,362,336,522,507,679,666,672,668,737,738,677,723,665,408,412,393,368,-838,-870,-862,-855,-847,-835,-1031,-1010,-1073,-1052,-1060,-1048,-997,-660,-660,-660,-566,-547,-644,0,-416,-410,-410,-407,-397,0,0,0,-386,0,0,0,-375]} 1. e4 {[%emt 0:00:15]} e5 {[%emt 0:00:20]} 2. d4 {[%emt 0:03:01]} exd4 {[%emt 0:00:14]} 3. Qxd4 {[%emt 0:00:45]} Nc6 {[%emt 0:00:26]} 4. Qe3 {[%emt 0:00:02]} g6 {[%emt 0:02:02]} 5. Nc3 {[%emt 0:00:57]} Bg7 {[%emt 0:01:00]} 6. Bd2 {[%emt 0:01:46]} d6 {[%emt 0:04:20]} 7. O-O-O {[%emt 0:01:14]} Nf6 {[%emt 0:00:45]} 8. Nd5 {[%emt 0:09:38] C22: Centre Game.} (8. Kb1 $14) 8... O-O $11 {[%emt 0:02:23]} 9. Nxf6+ {[%emt 0:01:13]} Bxf6 {[%emt 0:00:36] [#]} 10. h4 $1 {[%emt 0:01:25] [#] White has an edge.} h5 $146 {[%emt 0:01:18]} (10... Bxh4 $2 11. Qh6 Qf6 12. Rxh4 $18) (10... Bd4 11. Qf4) ({Predecessor:} 10... Ne5 11. f4 Ng4 12. Qg3 Bd4 13. Nh3 Qe8 14. Bd3 Qa4 15. c3 Bg7 16. f5 Ne5 {0-1 Sperdokli,E (2124)-Kviatkovska,Z EU-ch U18 Girls 1999 (1)}) 11. f3 {[%emt 0:03:38]} Bd4 {[%emt 0:05:51]} (11... Bxh4 12. g4 Bf6 13. gxh5 $16) 12. Qe1 {[%emt 0:01:27]} Bg7 {[%emt 0:01:41][%cal Ob7b5] [#]} (12... Qf6 $5 {[%cal Rd4b2]}) 13. g4 {[%emt 0:06:17]} hxg4 {[%emt 0:04:49]} 14. Kb1 {[%emt 0:05:14]} (14. h5 {is interesting.} gxf3 15. Qg3 Qf6 16. Bc3) 14... gxf3 {[%emt 0:06:38]} (14... Qe7 {simplifies} 15. h5 gxf3 16. Nh3 Bxh3 17. Rxh3 Ne5) 15. Bg5 {[%emt 0:03:37] Prevents Qf6} (15. h5 $15) 15... Qe8 $1 $17 {[%emt 0:01:12]} 16. h5 {[%emt 0:04:48] [#]} (16. Nxf3 $142 Bg4 17. Rd3) 16... Qe5 $2 {[%emt 0:07:20]} (16... gxh5 $1 $17 {...Bg4 is the strong threat.} 17. Nxf3 Bg4) 17. Bc1 $11 {[%emt 0:00:32]} Bg4 {[%emt 0:00:45]} 18. Rd5 {[%emt 0:01:29]} Qe6 {[%emt 0:04:09]} 19. Nh3 $1 {[%emt 0:07:05] aiming for Nf4.} Rae8 {[%emt 0:03:55]} (19... Bxh5 20. Nf4 f2 21. Qxf2 Qxe4 22. Bg2 $18) (19... Rfe8 $1 $15 20. Rg5 Bxh3 21. Rxh3 Qxe4) 20. Nf4 $1 {[%emt 0:01:33]} Qf6 {[%emt 0:26:13][%mdl 8192]} (20... Qxe4 $11 {and Black has nothing to worry.} 21. Qh4 Bf5 22. Rxf5 gxf5) 21. h6 $18 {[%emt 0:01:42]} f2 {[%emt 0:07:26]} (21... Ne5 {was called for.} 22. hxg7 Qxg7) 22. Qxf2 {[%emt 0:01:29]} Rxe4 {[%emt 0:01:22]} 23. hxg7 {[%emt 0:00:29]} Qxg7 {[%emt 0:01:10]} 24. Bd3 {[%emt 0:02:40]} Re5 {[%emt 0:00:57]} 25. Rxe5 {[%emt 0:00:56]} Nxe5 {[%emt 0:04:34]} 26. Nd5 {[%emt 0:00:25][%cal Rd5e7]} f5 {[%emt 0:00:57]} 27. Bg5 {[%emt 0:03:00]} (27. Qxa7 Bf3 28. Bh6 Qf7 $16) 27... Bf3 {[%emt 0:05:06]} 28. Ne7+ {[%emt 0:02:53]} Kf7 {[%emt 0:00:42] [#]} 29. Bc4+ $4 {[%emt 0:08:04][%mdl 8192]} Nxc4 $19 {[%emt 0:00:50][%csl Gc4][%cal Rg7b2]} 30. Rh7 {[%emt 0:03:02]} Qxh7 {[%emt 0:01:18]} 31. Qxf3 {[%emt 0:00:02]} c6 {[%emt 0:00:39]} 32. b3 {[%emt 0:05:07]} Ne5 {[%emt 0:01:05]} 33. Qe3 {[%emt 0:00:43]} Qh1+ {[%emt 0:00:15]} 34. Kb2 {[%emt 0:00:05]} Re8 {[%emt 0:00:45] ...Nf3 would be deadly.} 35. Qd4 {[%emt 0:03:21]} Ke6 {[%emt 0:01:37]} 36. Nxg6 {[%emt 0:00:42]} Qe4 {[%emt 0:00:01]} 37. Nf4+ {[%emt 0:00:25]} Kd7 {[%emt 0:00:13]} 38. Qxa7 {[%emt 0:00:05][%cal Ra7b7]} Kc7 {[%emt 0:00:22]} ({Better is} 38... c5 $19 39. Qa5 Qd4+ 40. Qc3 Qxc3+ 41. Kxc3 Nf7) 39. Qa5+ $2 {[%emt 0:00:01][%mdl 8192]} (39. Ne6+ $1 $11 Kd7 40. Nf8+ (40. Ng7 c5 $11) 40... Kc7 41. Ne6+ Kd7 42. Nf8+ (42. Ng7 Rc8 $11) 42... Rxf8 43. Qxb7+ Ke6 44. Qe7+ Kd5 45. Qxf8) 39... Kb8 {[%emt 0:00:37] Hoping for ...Nf7.} 40. Bd8 {[%emt 0:01:56]} Qd4+ {[%emt 0:01:42]} (40... Qxf4 41. Qc7+ Ka7 42. Qa5+ Kb8 43. Qc7+ Ka8 44. Qa5+ Kb8 $11) 41. Kb1 {[%emt 0:30:01]} Qd1+ $2 {[%emt 0:32:41]} ({Weaker is} 41... Qxf4 42. Qc7+ Ka7 43. Qa5+ Kb8 44. Qc7+ Ka8 45. Qa5+ Kb8 $11) ({Black should try} 41... Qg1+ $19 42. Kb2 Qd4+ 43. Kb1 Qc5 44. Qxc5 dxc5) 42. Kb2 $11 {[%emt 0:00:02]} Qd4+ $2 {[%emt 0:00:16][%mdl 8192]} (42... c5 $11 43. Qc7+ Ka8 44. Qa5+ Kb8 45. Qc7+ Ka8 46. Qa5+ Kb8) 43. Kb1 $1 $19 {[%emt 0:00:05]} Qd1+ $2 {[%emt 0:00:34]} ({And not} 43... Qxf4 44. Qc7+ Ka7 45. Qa5+ Kb8 46. Qc7+ Ka8 47. Qa5+ Kb8 $11) (43... Qg1+ $19 44. Kb2 Qd4+) 44. Kb2 $11 {[%emt 0:00:00]} Qd4+ $2 {[%emt 0:00:02][%mdl 8192]} (44... Nc4+ $11 45. bxc4 Qd4+ 46. Kb3 Re4 47. Qc7+ Ka8 48. Qa5+ Kb8 49. Qc7+ Ka8 50. Qa5+ Kb8) 45. Kb1 $1 {[%emt 0:00:00][%mdl 32768] A fantastic game!   Weighted Error Value: White=0.67/Black=0.67. An unexpected result.} 1/2-1/2

[Event "1st FIDE Olympiad DIS 2023"]
[Site "Belgrade"]
[Date "2023.01.31"]
[Round "2.15"]
[White "Donmez, Unal"]
[Black "Rakhatbekov, Tilegen"]
[Result "0-1"]
[ECO "B21"]
[WhiteElo "1816"]
[BlackElo "1489"]
[Annotator "NA RC COMBH"]
[PlyCount "90"]
[EventDate "2023.01.30"]
[EventType "team-tourn"]
[EventCountry "SRB"]
[SourceTitle "playchess.com"]
[Source "ChessBase"]
[SourceQuality "1"]
[WhiteTeam "Turkey"]
[BlackTeam "Kyrgyzstan"]
[WhiteTeamCountry "TUR"]
[BlackTeamCountry "KGZ"]
[TimeControl "40/5400+30:1800+30"]

1. e4 {[%emt 0:00:38]} c5 {[%emt 0:00:20]} 2. d4 {[%emt 0:00:41]} cxd4 {[%emt 0:00:56]} 3. c3 {[%emt 0:00:16]} dxc3 {[%emt 0:00:38]} 4. Nxc3 {[%emt 0:00:24]} e6 {[%emt 0:01:25]} 5. Bc4 {[%emt 0:00:26]} Bc5 {[%emt 0:01:21]} 6. Nf3 {[%emt 0:00:17]} Ne7 {[%emt 0:00:36]} 7. O-O {[%emt 0:00:23]} O-O {[%emt 0:00:48]} 8. Qe2 {[%emt 0:02:28]} Nbc6 {[%emt 0:02:46]} 9. Rd1 {[%emt 0:01:45]} a6 {[%emt 0:00:44]} 10. a4 {[%emt 0:00:57]} b6 {[%emt 0:00:41]} 11. Bf4 {[%emt 0:06:09]} Qe8 {[%emt 0:04:00]} 12. Rac1 {[%emt 0:16:04]} Bb7 {[%emt 0:06:25]} 13. e5 {[%emt 0:07:42]} (13. Bd6 $11) 13... f6 {[%emt 0:02:21]} 14. exf6 {[%emt 0:00:47]} Rxf6 {[%emt 0:00:04]} 15. Bg5 {[%emt 0:00:46]} Rg6 {[%emt 0:02:24]} 16. Ne4 {[%emt 0:01:51] [#]} Nf5 $1 {[%emt 0:03:09]} 17. h4 {[%emt 0:09:39] [#]} (17. Bd3 $17 {was called for.}) 17... Ncd4 {[%emt 0:01:28]} (17... h6 $1 $19 {[%cal Rh6g5] has better winning chances.} 18. Nxc5 bxc5) 18. Nxd4 {[%emt 0:02:14]} Nxd4 {[%emt 0:00:14]} 19. Rxd4 $17 {[%emt 0:20:32]} Bxd4 {[%emt 0:00:04]} 20. Nd6 {[%emt 0:00:51]} Qb8 {[%emt 0:00:26]} 21. Nxb7 {[%emt 0:00:33]} Qxb7 {[%emt 0:00:06]} 22. Bd3 {[%emt 0:00:54] [#]} Rf8 $1 {[%emt 0:01:47]} 23. Rf1 {[%emt 0:07:00]} Rxg5 {[%emt 0:03:23]} 24. hxg5 {[%emt 0:00:14]} a5 {[%emt 0:00:32]} (24... Qd5 $17 25. g6 hxg6 26. Bxa6 Rf4) 25. Bxh7+ {[%emt 0:01:20]} Kf7 {[%emt 0:00:17]} (25... Kxh7 $17 26. Qd3+ Rf5 27. g6+ Kh6 28. Qxd4 Rg5) 26. Rd1 {[%emt 0:00:58]} (26. Qd3 $1 $11 Qd5 27. Rd1) 26... Bc5 {[%emt 0:00:56]} 27. Qd3 {[%emt 0:00:42] [#]} (27. Rd3 $142) 27... Ke7 $1 {[%emt 0:00:14]} 28. Rd2 {[%emt 0:00:38]} Qc7 {[%emt 0:01:09]} (28... Rf4 $17 29. Qb3 Rg4) 29. Qc3 {[%emt 0:06:06]} e5 {[%emt 0:01:27]} 30. g4 {[%emt 0:02:01]} d6 {[%emt 0:00:35]} 31. Bf5 {[%emt 0:00:56]} Qc6 {[%emt 0:00:49]} 32. Qb3 {[%emt 0:01:55]} Rh8 {[%emt 0:00:57]} 33. Qe6+ {[%emt 0:00:58]} Kd8 {[%emt 0:00:53]} 34. Rd5 {[%emt 0:00:23]} Bb4 {[%emt 0:00:57]} 35. Kg2 {[%emt 0:01:33]} Re8 {[%emt 0:02:14]} 36. Qf7 {[%emt 0:00:29]} Re7 {[%emt 0:00:33]} 37. Qg8+ {[%emt 0:02:04]} Qe8 {[%emt 0:00:05]} 38. Qh7 {[%emt 0:00:49]} Qxa4 {[%emt 0:01:16]} 39. Rd3 {[%emt 0:01:24]} Qc6+ {[%emt 0:00:28]} 40. Be4 {[%emt 0:00:25]} Qe8 {[%emt 0:00:27]} 41. Bd5 {[%emt 0:30:40]} g6 {[%emt 0:30:49]} 42. Qh3 {[%emt 0:00:41]} e4 {[%emt 0:00:53]} 43. Rd1 {[%emt 0:00:40]} Bc5 {[%emt 0:00:15]} 44. Qc3 {[%emt 0:00:52]} Qf8 {[%emt 0:00:57]} 45. Qd2 {[%emt 0:00:54]} Qf3+ {[%emt 0:00:16]} 0-1